bitfinex/quotes_ETHUSD_20250824
["timestamp","ask_amount","ask_price","bid_price","bid_amount"]
[1756075475619,0.7657,4762.0,4761.9,4.66792793]
[1756075475784,0.7657,4762.0,4761.9,6.87273003]
[1756075475983,0.7657,4762.0,4761.9,3.22473003]
[1756075476186,0.7657,4762.0,4761.9,5.8528021]
[1756075476386,0.7657,4762.0,4761.9,5.7480021]
[1756075476919,0.7657,4762.0,4761.9,5.8528021]
[1756075477120,0.7657,4762.0,4761.9,2.2048021]
[1756075477415,0.7657,4762.0,4761.9,3.647]
[1756075477724,0.7657,4762.0,4761.9,6.3782161]
[1756075478019,0.7657,4762.0,4761.9,5.7470021]
[1756075478220,0.7657,4762.0,4761.9,3.647]
[1756075478422,0.7657,4762.0,4761.9,5.7470021]
[1756075478720,0.7657,4762.0,4761.9,6.66161438]
[1756075478905,0.7657,4762.0,4761.9,4.45681228]
[1756075479223,0.7657,4762.0,4761.9,5.7470021]
[1756075479521,0.1048,4762.2,4761.9,5.7470021]
[1756075479522,0.1048,4762.2,4762.1,2.0999139]
[1756075479818,0.2926,4762.2,4762.1,5.7469139]
[1756075480389,0.7657,4762.2,4762.1,5.7469139]
[1756075480588,0.7657,4762.2,4762.1,6.9961855]
[1756075481744,0.4731,4762.2,4762.1,6.9961855]
[1756075482082,0.04,4762.4,4762.3,2.09982571]
[1756075482347,0.04,4762.4,4762.3,5.74582571]
[1756075482527,0.04,4762.4,4762.3,7.77716934]
[1756075483828,0.7832,4762.4,4762.3,7.77716934]
[1756075484019,0.04,4762.4,4762.3,7.77716934]
[1756075484352,0.7832,4762.4,4762.3,7.77716934]
[1756075485141,0.7832,4762.4,4762.3,5.74582571]
[1756075485341,0.7832,4762.4,4762.3,3.646]
[1756075486032,0.888,4762.4,4762.3,5.74582571]
[1756075486718,0.888,4762.4,4762.3,3.646]
[1756075487246,0.888,4762.4,4761.8,1.615]
[1756075487418,0.888,4762.4,4761.9,6.646]
[1756075487419,0.4342,4762.3,4761.9,6.646]
[1756075487817,0.309,4762.0,4761.9,5.1000021]
[1756075488020,0.309,4762.0,4761.7,2.83611935]
[1756075488021,0.7432,4762.0,4761.7,0.1048]
[1756075488258,0.1048,4761.8,4761.0,0.1048]
[1756075488552,0.7432,4762.0,4760.1,1.615]
[1756075488553,0.309,4761.1,4760.1,1.615]
[1756075488740,0.539,4761.0,4760.2,3.646]
[1756075489045,0.309,4760.3,4760.1,1.615]
[1756075489249,0.309,4760.3,4759.8,2.10488805]
[1756075489250,0.4342,4760.2,4759.8,2.10488805]
[1756075489448,0.4342,4760.2,4759.9,3.645]
[1756075489449,0.539,4760.2,4759.9,3.645]
[1756075489851,0.309,4760.0,4759.9,3.645]
[1756075490032,0.7432,4760.0,4759.9,3.645]
[1756075490845,0.7432,4760.0,4759.9,5.74588447]
[1756075491051,0.309,4760.0,4759.9,5.74588447]
[1756075491247,0.1048,4760.2,4760.1,2.1007962]
[1756075491550,0.1048,4760.2,4760.1,5.7467962]
[1756075491855,0.7432,4760.2,4760.1,5.7467962]
[1756075493256,0.7432,4760.2,4760.1,3.646]
[1756075493455,0.309,4760.2,4760.1,5.7467962]
[1756075493758,0.1048,4760.5,4760.4,2.1006638]
[1756075493928,0.1048,4760.5,4760.4,3.645]
[1756075494133,0.1048,4760.5,4760.4,5.7456638]
[1756075494529,0.4138,4760.5,4760.4,3.646]
[1756075494753,0.1048,4760.5,4760.4,5.7466638]
[1756075495156,0.4342,4760.9,4760.5,2.10061968]
[1756075495465,0.4342,4761.6,4760.8,2.1004593]
[1756075495664,0.4342,4761.6,4761.1,2.10031625]
[1756075495890,0.309,4761.2,4761.1,2.10031625]
[1756075496023,0.4138,4761.2,4761.1,3.645]
[1756075496365,0.848,4761.2,4760.7,3.645]
[1756075496560,0.848,4761.2,4760.7,5.74552592]
[1756075496762,0.4342,4761.1,4760.7,5.74552592]
[1756075496947,0.4138,4760.8,4760.7,5.74552592]
[1756075497163,0.1048,4760.8,4760.7,5.74552592]
[1756075498022,0.7432,4760.8,4760.4,1.615]
[1756075498224,0.4342,4760.7,4760.5,3.645]
[1756075498425,0.7432,4760.6,4760.5,3.645]
[1756075498625,0.7432,4760.6,4760.5,5.74561968]
[1756075499034,0.7432,4760.6,4760.5,2.10061968]
[1756075499235,0.7432,4760.6,4760.5,3.645]
[1756075499641,0.7432,4760.6,4760.5,5.74561968]
[1756075500140,0.7432,4760.6,4760.5,3.645]
[1756075500332,0.7432,4760.6,4760.4,1.615]
[1756075500539,0.7432,4760.6,4760.5,5.74561968]
[1756075500880,0.309,4760.6,4760.5,5.74561968]
[1756075501870,0.1048,4760.7,4760.6,2.10057555]
[1756075502076,0.4342,4761.4,4760.9,2.10042388]
[1756075502363,7.126,4761.9,4760.9,2.10042388]
[1756075502364,0.4342,4761.3,4761.0,3.645]
[1756075502880,0.4342,4761.8,4761.0,3.645]
[1756075503080,0.04,4762.4,4761.7,2.1000903]
[1756075503231,0.1048,4761.9,4761.8,5.7450462]
[1756075503433,0.1048,4761.9,4761.8,6.0448462]
[1756075503963,0.1048,4761.9,4761.8,9.0448462]
[1756075504163,0.04,4762.4,4762.3,2.09982571]
[1756075504374,0.04,4762.4,4762.3,5.74482571]
[1756075504868,0.041,4762.4,4762.3,5.74482571]
[1756075505983,0.7842,4762.4,4762.3,3.645]
[1756075506282,0.7842,4762.4,4762.3,5.74482571]
[1756075507238,0.7842,4762.4,4762.3,3.645]
[1756075507639,0.7842,4762.4,4761.5,3.644]
[1756075507862,0.4342,4762.3,4761.6,3.0]
[1756075508061,0.1048,4761.9,4761.6,3.0]
[1756075508265,0.309,4761.7,4761.3,1.7238]
[1756075508460,0.309,4761.7,4761.6,2.1001344]
[1756075508666,0.309,4761.7,4761.6,6.644]
[1756075508874,0.7432,4761.7,4761.3,1.7238]
[1756075509136,0.539,4761.6,4761.4,5.74421102]
[1756075509336,0.7432,4761.5,4761.3,0.004]
[1756075509842,0.4342,4761.4,4761.3,0.004]
[1756075510049,0.7432,4761.4,4761.3,0.004]
[1756075512650,0.1048,4761.6,4761.3,0.004]
[1756075513347,0.3029,4761.4,4761.3,0.004]
[1756075513862,0.7427,4761.4,4761.3,0.004]
[1756075514062,0.1048,4761.4,4761.3,0.004]
[1756075514267,0.1048,4761.7,4761.3,0.004]
[1756075514574,0.1048,4761.4,4761.3,0.2893]
[1756075514744,0.1048,4761.7,4761.4,2.10018304]
[1756075515963,0.1048,4761.7,4761.6,0.2853]
[1756075516164,0.1048,4761.7,4761.6,3.9283]
[1756075516479,0.1048,4761.7,4761.6,3.643]
[1756075517246,0.1048,4761.7,4761.6,6.6031516]
[1756075517578,0.1048,4762.3,4761.8,2.10003823]
[1756075517758,0.1048,4762.3,4762.2,2.0998698]
[1756075518089,0.1048,4762.3,4762.1,5.74291158]
[1756075518292,0.1048,4762.3,4762.2,2.0998698]
[1756075519211,0.1048,4762.3,4762.1,5.74290419]
[1756075519415,0.1048,4762.3,4762.1,3.643]
[1756075520062,0.7427,4762.2,4761.4,3.643]
[1756075520285,0.4398,4762.1,4761.4,3.643]
[1756075521100,0.041,4762.4,4761.4,5.74319743]
[1756075521307,0.041,4762.4,4762.0,2.09993772]
[1756075521600,0.041,4762.4,4761.8,3.642]
[1756075522180,0.041,4762.4,4762.0,2.09994922]
[1756075522411,0.041,4762.4,4761.8,3.642]
[1756075522569,0.001,4762.3,4762.1,2.09991019]
[1756075522900,0.001,4762.3,4760.0,0.004]
[1756075522901,31.264,4762.1,4760.0,0.004]
[1756075523065,0.3029,4760.1,4757.8,0.10986692]
[1756075523265,0.3029,4760.1,4758.0,0.4398]
[1756075523266,0.55682194,4759.5,4758.0,0.4398]
[1756075523516,1.264,4759.6,4756.6,0.004]
[1756075523517,1.5669,4758.4,4756.6,0.004]
[1756075523804,3.0,4758.2,4756.6,0.004]
[1756075523977,0.3029,4757.5,4756.6,0.004]
[1756075524180,1.264,4757.3,4756.6,0.004]
[1756075524388,3.8419,4757.2,4756.6,0.004]
[1756075524579,1.264,4756.9,4756.6,0.004]
[1756075524782,0.3029,4756.7,4756.6,0.004]
[1756075525207,5.6667,4756.7,4756.6,0.004]
[1756075525402,6.08175255,4756.7,4756.6,0.004]
[1756075526200,5.42175255,4756.7,4756.6,0.004]
[1756075526843,4.15775255,4756.7,4756.6,0.004]
[1756075527119,1.615,4757.2,4756.6,0.004]
[1756075527303,0.7427,4756.7,4756.6,0.004]
[1756075527712,1.615,4757.2,4756.6,0.004]
[1756075528083,0.3029,4756.7,4756.6,0.004]
[1756075529114,0.4398,4757.1,4756.6,0.004]
[1756075529283,0.20548,4757.0,4756.6,0.004]
[1756075529483,0.64528,4757.0,4756.6,0.004]
[1756075529735,0.20548,4757.0,4756.6,0.004]
[1756075529914,0.4398,4756.9,4756.6,0.004]
[1756075530104,0.1048,4756.7,4756.6,0.004]
[1756075531088,0.8475,4756.7,4756.6,0.004]
[1756075531990,0.99689995,4756.7,4756.6,0.004]
[1756075534493,1.43791944,4756.7,4756.6,0.004]
[1756075534690,4.43791944,4756.7,4756.6,0.004]
[1756075534901,11.56391944,4756.7,4756.6,0.004]
[1756075536394,12.11894172,4756.7,4756.6,0.004]
[1756075536595,11.56391944,4756.7,4756.6,0.004]
[1756075537919,12.30147378,4756.7,4756.6,0.004]
[1756075538297,11.56391944,4756.7,4756.6,0.004]
[1756075538624,12.67046798,4756.7,4756.6,0.004]
[1756075538799,13.33046798,4756.7,4756.6,0.004]
[1756075539202,14.32621725,4756.7,4755.9,0.004]
[1756075539509,3.7648,4756.4,4755.9,0.004]
[1756075539710,13.73714989,4756.4,4755.9,0.004]
[1756075539888,12.07451949,4756.4,4755.9,0.004]
[1756075540328,0.66,4756.3,4755.9,0.004]
[1756075540493,19.1739183,4756.2,4755.9,0.004]
[1756075540693,49.76780774,4756.2,4755.9,0.004]
[1756075540896,3.66,4756.0,4755.9,0.004]
[1756075541120,39.69120268,4756.0,4755.9,0.004]
[1756075541422,40.76912672,4756.0,4755.9,0.004]
[1756075541626,41.21916646,4756.0,4755.9,0.004]
[1756075542895,35.39855923,4756.0,4755.9,0.004]
[1756075543110,37.50116646,4756.0,4755.9,0.004]
[1756075543320,41.21716646,4756.0,4755.9,0.004]
[1756075543526,3.66,4755.9,4755.6,0.004]
[1756075543719,5.88703616,4755.7,4755.6,0.004]
[1756075543918,6.32805565,4755.7,4755.6,0.004]
[1756075544119,3.54581949,4755.7,4755.6,0.004]
[1756075544300,7.25981949,4755.7,4755.6,0.004]
[1756075544703,9.47342713,4755.7,4755.6,0.004]
[1756075545033,0.99585923,4755.7,4755.6,0.004]
[1756075545207,8.72502605,4755.7,4755.6,0.004]
[1756075545397,7.26081949,4755.7,4755.6,0.004]
[1756075546534,7.25881949,4755.7,4755.6,0.004]
[1756075546732,8.81541949,4755.7,4755.6,0.004]
[1756075547031,8.00821949,4755.7,4755.4,0.004]
[1756075547329,0.89781949,4755.6,4755.4,0.004]
[1756075547530,0.73361949,4755.5,4755.4,0.004]
[1756075547716,1.19041949,4755.5,4755.4,0.004]
[1756075548301,3.02005565,4755.5,4755.4,0.004]
[1756075548612,4.38158689,4755.5,4755.4,0.004]
[1756075549824,13.43158689,4755.5,4755.4,0.004]
[1756075550533,3.66,4755.4,4753.2,0.004]
[1756075550733,1.10509918,4753.6,4753.2,0.004]
[1756075550906,0.54581949,4753.6,4753.5,0.7781]
[1756075551099,0.54581949,4753.6,4753.5,2.88181305]
[1756075551730,0.54581949,4753.6,4753.5,0.7781]
[1756075552096,0.73872445,4753.6,4753.5,0.7781]
[1756075552297,0.73872445,4753.6,4753.5,0.3084]
[1756075552534,2.58055643,4753.6,4753.5,0.3084]
[1756075552836,0.73872445,4753.6,4753.0,2.10392912]
[1756075553037,1.84183198,4753.7,4752.9,0.004]
[1756075553038,4.33592445,4753.5,4752.9,2.1079703]
[1756075553235,0.1048,4753.2,4752.9,0.004]
[1756075553435,0.44101949,4753.1,4752.9,2.10794173]
[1756075553623,0.44101949,4753.0,4752.9,0.004]
[1756075553933,0.63405844,4753.0,4752.9,0.004]
[1756075554412,0.44101949,4753.0,4752.5,0.004]
[1756075554753,0.54581949,4752.9,4752.8,2.10401976]
[1756075555031,1.92345373,4752.9,4752.8,2.40856035]
[1756075555339,0.44101949,4752.9,4752.8,5.51416035]
[1756075556748,1.18103561,4752.9,4752.8,5.51416035]
[1756075557145,0.44101949,4752.9,4752.8,5.51416035]
[1756075557324,1.18103561,4752.9,4752.8,5.51416035]
[1756075558954,1.18103561,4752.9,4752.5,0.004]
[1756075558955,0.44101949,4752.9,4752.5,0.004]
[1756075559164,0.73952849,4752.7,4752.5,0.004]
[1756075559323,0.1048,4753.1,4752.5,0.004]
[1756075559324,1.55513067,4752.6,4752.5,0.004]
[1756075559524,1.55513067,4752.6,4752.5,2.1081557]
[1756075561229,1.55525212,4752.6,4752.5,2.1081557]
[1756075561856,0.44383854,4752.6,4752.5,2.1081557]
[1756075564557,1.55525212,4752.6,4752.5,2.1081557]
[1756075564976,1.55525212,4752.6,4752.5,0.004]
[1756075565268,1.55525212,4752.6,4752.5,2.1081557]
[1756075565468,1.55525212,4752.6,4752.5,0.004]
[1756075565669,0.44383854,4752.6,4752.5,0.004]
[1756075565967,0.44383854,4752.6,4752.5,2.1081557]
[1756075566328,0.44383854,4752.6,4752.5,2.42857127]
[1756075567255,0.44383854,4752.6,4752.5,2.1081557]
[1756075567658,1.18662808,4752.6,4752.5,2.1081557]
[1756075567872,0.44383854,4752.6,4752.5,2.2137557]
[1756075568277,0.44383854,4752.6,4752.5,5.2137557]
[1756075568496,1.00124423,4752.6,4752.5,5.8737557]
[1756075568651,0.44383854,4752.6,4752.5,7.20555455]
[1756075569173,0.44383854,4752.6,4752.5,6.54555455]
[1756075570941,0.44383854,4752.6,4752.5,7.20555455]
[1756075571466,0.55740569,4753.3,4752.7,0.66]
[1756075571667,0.55740569,4753.3,4753.2,2.20864583]
[1756075571970,0.74278954,4753.6,4753.5,2.10371305]
[1756075572293,1.48357991,4753.6,4752.9,3.1048]
[1756075572482,1.48357991,4753.6,4752.9,0.1048]
[1756075572483,0.55797454,4753.2,4752.9,0.1048]
[1756075572690,1.03687568,4753.0,4752.5,0.004]
[1756075572869,0.74427568,4753.0,4752.9,2.10397862]
[1756075573035,0.44606496,4753.0,4752.9,2.10397862]
[1756075573242,0.44606496,4753.0,4752.9,3.94978805]
[1756075573449,0.001,4753.1,4753.0,2.10393435]
[1756075576472,0.001,4753.1,4753.0,8.78093435]
[1756075576778,0.1048,4753.6,4753.5,5.76371305]
[1756075576963,1.617,4755.1,4754.9,2.10305956]
[1756075577170,0.44580475,4755.0,4754.9,2.10305956]
[1756075577472,0.463,4755.1,4755.0,2.10304942]
[1756075577776,0.1048,4755.1,4755.0,2.10304942]
[1756075578182,0.04,4755.4,4755.3,2.10291674]
[1756075578345,0.04,4755.4,4755.3,15.30097724]
[1756075578983,0.04,4755.4,4755.3,18.40577724]
[1756075584969,0.001,4755.7,4755.6,2.10278408]
[1756075585170,0.001,4755.7,4755.6,11.46112771]
[1756075585369,0.001,4755.7,4755.6,10.90592771]
[1756075585572,0.7608,4755.7,4755.6,8.87458408]
[1756075586469,0.464,4755.7,4755.6,8.87458408]
[1756075587097,0.001,4755.7,4755.6,8.87458408]
[1756075587788,0.7608,4755.7,4755.6,8.87458408]
[1756075588471,0.001,4755.7,4755.6,9.53458408]
[1756075588811,0.001,4755.7,4755.6,11.56592771]
[1756075589409,0.001,4755.7,4755.6,10.90592771]
[1756075589567,0.464,4755.7,4755.6,10.90592771]
[1756075589768,0.001,4755.7,4755.6,10.90592771]
[1756075590504,0.7608,4755.7,4755.6,8.76978408]
[1756075591576,0.7608,4755.7,4755.6,3.667]
[1756075591767,0.7608,4755.7,4754.6,13.1980605]
[1756075591768,0.7608,4755.7,4755.5,2.10282488]
[1756075591963,0.2978,4755.7,4755.5,2.10282488]
[1756075592206,0.463,4755.6,4755.5,2.10282488]
[1756075592421,0.7598,4755.6,4755.5,2.10282488]
[1756075592771,0.7598,4755.6,4755.5,5.76382488]
[1756075593906,0.463,4755.6,4755.5,5.76382488]
[1756075594221,0.7598,4755.6,4755.5,2.10281971]
[1756075594708,0.7598,4755.6,4754.1,13.1980605]
[1756075594884,0.463,4755.5,4754.4,3.659]
[1756075595084,0.463,4755.5,4754.3,2.10335621]
[1756075595085,0.2968,4754.5,4754.3,2.10335621]
[1756075595295,0.463,4754.4,4754.2,5.76240326]
[1756075595495,0.7598,4754.3,4754.2,5.76240326]
[1756075595730,0.7598,4754.3,4754.2,8.76240326]
[1756075596425,0.463,4754.3,4754.2,8.76240326]
[1756075600199,0.7598,4754.3,4754.2,8.76240326]
[1756075600603,0.7598,4754.3,4754.2,6.659]
[1756075600926,0.7598,4754.3,4754.0,0.1048]
[1756075601112,0.463,4754.2,4753.4,3.657]
[1756075601284,0.463,4754.2,4753.1,0.04]
[1756075601285,0.1048,4753.9,4753.5,6.657]
[1756075601515,0.1048,4753.9,4753.4,3.657]
[1756075601516,0.2968,4753.6,4753.4,3.657]
[1756075601828,0.463,4753.5,4753.4,5.10375494]
[1756075602032,0.7598,4753.5,4753.3,3.657]
[1756075602188,0.7598,4753.5,4753.4,2.10375731]
[1756075602382,0.7598,4753.5,4753.2,3.661]
[1756075602583,0.463,4753.4,4753.2,3.661]
[1756075602783,1.617,4754.7,4753.2,3.661]
[1756075602784,0.7835,4753.3,4753.2,0.004]
[1756075603013,0.8883,4753.3,4753.2,2.10784583]
[1756075603235,0.8883,4753.3,4753.2,0.004]
[1756075603913,0.7835,4753.3,4753.2,0.004]
[1756075608596,0.66,4753.2,4752.5,0.004]
[1756075608932,0.66,4753.2,4750.7,3.658]
[1756075608933,0.3124,4752.6,4750.7,3.658]
[1756075609140,1.617,4752.5,4750.8,3.0]
[1756075609354,0.3124,4752.1,4750.8,3.0]
[1756075609630,0.3124,4752.1,4750.7,3.658]
[1756075609800,0.7835,4752.1,4750.3,3.658]
[1756075609990,0.7835,4752.1,4751.0,2.10480937]
[1756075610493,0.7835,4752.1,4750.4,3.0]
[1756075610693,0.7835,4752.1,4751.0,2.10481698]
[1756075611529,0.7835,4752.1,4751.2,2.10469298]
[1756075611735,0.7835,4752.1,4750.4,3.0]
[1756075612049,0.7835,4752.1,4750.7,2.10491469]
[1756075612330,0.7835,4752.1,4750.8,2.10489669]
[1756075612531,0.7835,4752.1,4750.6,2.10498653]
[1756075612722,0.7835,4752.1,4750.4,3.0]
[1756075613051,0.7835,4752.1,4751.2,2.1047246]
[1756075613349,0.4711,4752.1,4750.8,13.1980605]
[1756075613501,0.7835,4752.1,4750.8,13.1980605]
[1756075613704,0.7835,4752.1,4750.9,2.10483611]
[1756075613937,0.8891,4752.1,4751.2,2.1047243]
[1756075614119,0.8891,4752.1,4750.7,0.1056]
[1756075614319,0.8891,4752.1,4751.5,2.10859091]
[1756075614521,0.8891,4752.1,4751.6,2.10454048]
[1756075614837,0.8891,4752.1,4751.5,0.004]
[1756075616441,4.5481,4752.1,4751.5,0.004]
[1756075617653,0.8891,4752.1,4751.6,2.10451729]
[1756075617862,4.79871,4752.1,4751.5,0.004]
[1756075619213,4.79871,4752.1,4751.5,2.10859532]
[1756075619819,4.5481,4752.1,4751.6,2.10454963]
[1756075620024,4.5481,4752.1,4751.6,2.10455384]
[1756075620221,4.5481,4752.1,4751.5,0.004]
[1756075621528,0.8891,4752.1,4751.5,0.004]
[1756075621726,3.7646,4752.1,4751.8,2.10443522]
[1756075622024,4.5481,4752.1,4751.5,0.004]
[1756075622834,4.5481,4752.1,4751.5,2.10858873]
[1756075623559,4.5481,4752.1,4751.5,0.004]
[1756075623759,4.5481,4752.1,4751.5,2.10857543]
[1756075624462,4.5481,4752.1,4751.6,2.10454984]
[1756075624664,4.5481,4752.1,4752.0,2.1083771]
[1756075624665,0.1056,4752.1,4752.0,2.1083771]
[1756075624862,3.659,4752.1,4752.0,2.10836205]
[1756075625064,3.659,4752.1,4752.0,2.1083771]
[1756075625578,3.7646,4752.1,4752.0,2.1083771]
[1756075626454,0.1056,4752.1,4752.0,2.1083771]
[1756075627050,0.1056,4752.1,4752.0,0.004]
[1756075627462,0.1056,4752.1,4752.0,2.1083771]
[1756075629873,5.277,4753.2,4753.0,2.10389023]
[1756075630250,5.277,4753.2,4752.3,13.1980605]
[1756075630576,0.1048,4753.1,4753.0,2.10393435]
[1756075630775,0.1048,4753.1,4753.0,15.30199485]
[1756075631146,0.1058,4753.1,4753.0,15.30199485]
[1756075631370,0.1058,4753.1,4753.0,13.1980605]
[1756075631558,0.1058,4753.1,4752.4,0.1056]
[1756075631742,0.1058,4753.1,4753.0,2.10393435]
[1756075632759,0.001,4753.1,4753.0,15.30199485]
[1756075633064,0.001,4753.1,4753.0,18.30199485]
[1756075633264,3.658,4754.3,4754.2,2.10340043]
[1756075633468,0.04,4754.4,4754.3,2.10335906]
[1756075634660,0.04,4754.4,4754.3,2.52403501]
[1756075635026,0.04,4754.4,4754.3,2.62883501]
[1756075637020,0.04,4754.4,4754.3,2.84039106]
[1756075637316,0.04,4754.4,4754.3,2.20815906]
[1756075637613,0.04,4754.4,4754.3,2.10335906]
[1756075637918,1.618,4755.3,4755.2,2.10296096]
[1756075638083,0.041,4755.4,4755.3,2.10291674]
[1756075638282,0.041,4755.4,4755.3,15.30097724]
[1756075638483,0.041,4755.4,4755.3,15.73204501]
[1756075639112,0.041,4755.4,4755.3,18.73204501]
[1756075640406,0.041,4755.4,4755.3,18.81632101]
[1756075640711,0.001,4755.7,4755.5,0.66]
[1756075641022,0.001,4756.7,4756.1,2.10256302]
[1756075641207,0.001,4756.7,4756.1,19.06142352]
[1756075641531,0.001,4756.7,4756.1,22.06142352]
[1756075642036,0.001,4756.7,4756.1,22.72142352]
[1756075642200,0.001,4756.7,4756.3,2.10247461]
[1756075642532,0.001,4756.7,4756.3,4.13381824]
[1756075643502,0.001,4756.7,4756.3,7.13381824]
[1756075643834,0.001,4756.7,4756.3,7.79381824]
[1756075644043,0.001,4756.7,4756.6,2.102342]
[1756075644198,0.001,4756.7,4756.6,8.758342]
[1756075644402,0.001,4756.7,4756.6,10.4523517]
[1756075644903,0.001,4756.7,4756.6,11.1123517]
[1756075645224,0.4426,4757.8,4757.3,15.30009316]
[1756075645757,0.4426,4757.8,4757.3,15.40489316]
[1756075646605,0.041,4757.4,4757.3,15.40489316]
[1756075647750,0.041,4757.4,4757.3,16.47733745]
[1756075648405,0.041,4757.4,4757.3,17.10918045]
[1756075650561,0.041,4757.4,4757.3,17.76918045]
[1756075651163,0.041,4757.4,4757.3,20.76918045]
[1756075656670,0.778,4757.4,4757.3,5.83867566]
[1756075658170,0.4836,4757.4,4757.3,5.83867566]
[1756075658468,0.041,4757.4,4757.3,5.83867566]
[1756075658688,0.778,4757.4,4757.3,5.83867566]
[1756075660142,0.041,4757.4,4757.3,5.83867566]
[1756075660348,0.041,4757.4,4757.3,6.99795361]
[1756075662852,0.7889,4757.4,4757.3,6.99795361]
[1756075663184,0.7889,4757.4,4757.3,5.83867566]
[1756075663389,0.7889,4757.4,4757.3,0.736643]
[1756075663593,0.7889,4757.4,4757.3,0.631843]
[1756075664655,0.7889,4757.4,4757.3,2.73387566]
[1756075664965,0.7889,4757.4,4757.3,0.631843]
[1756075665165,0.7889,4757.4,4757.3,2.73387566]
[1756075665461,0.7889,4757.4,4757.3,0.631843]
[1756075665884,0.8937,4757.4,4757.3,0.631843]
[1756075666296,1.34002007,4757.4,4757.3,0.631843]
[1756075666786,1.34002007,4757.4,4757.3,2.73387566]
[1756075667093,1.23522007,4757.4,4757.3,2.73387566]
[1756075667479,0.48732007,4757.4,4757.3,2.73387566]
[1756075667673,1.23522007,4757.4,4757.3,2.73387566]
[1756075670974,1.23522007,4757.4,4757.3,0.631843]
[1756075671398,1.34002007,4757.4,4757.3,0.631843]
[1756075671799,1.52963525,4757.4,4757.3,0.631843]
[1756075672025,2.27391093,4757.4,4757.3,0.631843]
[1756075672177,1.52963525,4757.4,4757.3,0.631843]
[1756075672384,2.08605087,4757.4,4757.3,0.631843]
[1756075672692,1.23522007,4757.4,4757.3,2.73387566]
[1756075673095,0.48732007,4757.4,4757.3,2.73387566]
[1756075673482,0.92332007,4757.4,4757.3,2.73387566]
[1756075675206,0.48732007,4757.4,4757.3,2.73387566]
[1756075675597,1.23522007,4757.4,4757.3,2.73387566]
[1756075678206,0.7889,4757.4,4757.3,2.73387566]
[1756075680409,0.041,4757.4,4757.3,2.73387566]
[1756075680745,0.041,4757.4,4757.3,3.68717384]
[1756075681310,0.041,4757.4,4757.3,9.76800711]
[1756075681618,0.041,4757.4,4757.3,13.42800711]
[1756075683424,0.041,4757.4,4757.3,20.51770211]
[1756075684570,0.001,4758.1,4758.0,2.10172341]
[1756075684843,0.041,4758.4,4758.3,2.7615909]
[1756075685045,0.041,4758.4,4758.3,8.0245909]
[1756075685245,0.041,4758.4,4758.3,11.6888769]
[1756075685448,0.04,4759.4,4758.4,8.40618692]
[1756075685661,0.04,4759.4,4759.2,0.66]
[1756075685949,0.04,4759.4,4759.3,7.34132591]
[1756075686364,0.04,4759.4,4759.3,11.00132591]
[1756075686564,0.04,4759.4,4759.3,11.10612591]
[1756075687703,0.04,4760.4,4760.3,2.76070793]
[1756075687816,0.04,4760.4,4760.3,9.89385649]
[1756075688019,0.7879,4760.4,4760.3,9.99865649]
[1756075688615,0.7879,4760.4,4760.3,0.1048]
[1756075688836,0.7879,4760.4,4760.2,5.74671288]
[1756075689022,0.436,4760.3,4760.2,5.74671288]
[1756075689237,0.7479,4760.3,4760.2,5.74671288]
[1756075689424,0.04,4760.4,4760.2,5.74671288]
[1756075689425,0.04,4760.4,4760.3,2.10070793]
[1756075689752,0.04,4760.4,4760.3,2.89593001]
[1756075689921,0.476,4760.4,4760.3,2.89593001]
[1756075690423,0.7879,4760.4,4760.3,0.79522208]
[1756075690616,0.7879,4760.4,4760.2,5.74573876]
[1756075690818,0.436,4760.3,4760.2,5.74573876]
[1756075691017,0.04,4760.4,4760.3,5.20550793]
[1756075691267,0.3519,4760.4,4760.3,5.10070793]
[1756075691615,0.7879,4760.4,4760.3,5.10070793]
[1756075692457,0.7879,4760.4,4760.3,5.73214793]
[1756075694366,0.7879,4760.4,4760.3,0.63144]
[1756075696757,0.7879,4760.4,4760.3,2.73214793]
[1756075698651,0.04,4760.4,4760.3,2.73214793]
[1756075698856,0.04,4760.4,4760.3,3.9846421]
[1756075701032,0.04,4760.4,4760.3,7.5398421]
[1756075701246,0.04,4760.4,4760.3,7.6446421]
[1756075703124,0.7772,4760.4,4760.3,10.6266421]
[1756075703425,0.04,4760.4,4760.3,10.6266421]
[1756075703631,0.041,4760.4,4760.3,10.6266421]
[1756075707040,0.041,4760.4,4760.3,11.2866421]
[1756075709150,0.041,4760.4,4760.3,24.45717037]
[1756075709728,0.041,4761.4,4761.1,2.10033307]
[1756075709924,0.041,4761.4,4761.3,5.10026673]
[1756075710260,0.041,4761.4,4761.3,5.76026673]
[1756075710463,0.041,4761.4,4761.3,6.21236673]
[1756075710761,0.041,4761.4,4761.3,6.31716673]
[1756075711059,0.7782,4761.4,4761.3,6.31716673]
[1756075711262,0.7782,4761.4,4761.3,7.75652461]
[1756075712063,0.041,4761.4,4761.3,7.75652461]
[1756075713365,0.041,4761.4,4761.3,13.82729123]
[1756075715856,0.041,4761.4,4761.3,10.73552461]
[1756075715857,0.7782,4761.4,4761.3,10.73552461]
[1756075717041,0.4931,4761.4,4761.3,10.73552461]
[1756075717950,0.041,4761.4,4761.3,11.29072461]
[1756075718144,0.041,4761.4,4761.3,11.39552461]
[1756075718761,0.001,4762.2,4762.1,0.66]
[1756075718983,0.001,4762.2,4762.1,15.46968052]
[1756075719171,0.001,4762.2,4762.1,17.33144675]
[1756075719781,0.001,4762.2,4762.1,17.41559875]
[1756075720485,0.001,4762.3,4762.2,5.7598698]
[1756075721053,1e-08,4762.3,4762.2,5.7598698]